[Event "XIX Najdorf Memorial 2019"]
[Site "Warsaw"]
[Date "2019.07.07"]
[Round "2.7"]
[White "Fedorov, Alexei"]
[Black "Oglaza, Oskar"]
[Result "1-0"]
[ECO "B23"]
[WhiteElo "2551"]
[BlackElo "2345"]
[Annotator "ChessBase"]
[PlyCount "57"]
[EventDate "2019.07.06"]
[EventType "swiss"]
[EventCountry "POL"]
[SourceTitle "playchess.com"]
[Source "ChessBase"]
[SourceQuality "1"]
[TimeControl "40/5400+30:1800+30"]

1. e4 {[%emt 0:00:00]} c5 {[%emt 0:00:00]} 2. Nc3 {[%emt 0:00:10]} a6 {[%emt 0:00:00]} 3. g3 {[%emt 0:00:46]} b5 {[%emt 0:00:03]} 4. Bg2 {[%emt 0:00:07]} Bb7 {[%emt 0:00:09]} 5. Nh3 {[%emt 0:00:36]} b4 {[%emt 0:05:47]} 6. Na4 {[%emt 0:01:43]} e5 {[%emt 0:14:31]} 7. c3 {[%emt 0:08:14]} Nc6 {[%emt 0:20:17]} 8. O-O {[%emt 0:01:56]} d6 {[%emt 0:04:36]} 9. f4 {[%emt 0:04:18]} Nf6 {[%emt 0:03:17]} 10. fxe5 {[%emt 0:03:16]} dxe5 {[%emt 0:00:08]} 11. d3 {[%emt 0:00:06]} Be7 {[%emt 0:00:57]} 12. Be3 {[%emt 0:07:47]} Qa5 {[%emt 0:02:45]} 13. cxb4 {[%emt 0:05:37]} cxb4 {[%emt 0:04:08]} 14. Rc1 {[%emt 0:00:18]} O-O {[%emt 0:03:16]} 15. Rxf6 {[%emt 0:08:26]} gxf6 {[%emt 0:06:58]} 16. Nb6 {[%emt 0:01:22]} Rad8 {[%emt 0:09:37]} 17. Nd5 {[%emt 0:01:29]} Rfe8 {[%emt 0:04:53]} 18. Qg4+ {[%emt 0:06:25]} Kh8 {[%emt 0:00:06]} 19. Bb6 {[%emt 0:00:11]} Qb5 {[%emt 0:04:13]} 20. Bxd8 {[%emt 0:02:05]} Bxd8 {[%emt 0:01:21]} 21. Rf1 {[%emt 0:10:20]} Nd4 {[%emt 0:06:12]} 22. Nxf6 {[%emt 0:00:48]} Bxf6 {[%emt 0:05:55]} 23. Rxf6 {[%emt 0:00:10]} Bc8 {[%emt 0:00:24]} 24. Qh5 {[%emt 0:02:49]} Qxd3 {[%emt 0:00:06]} 25. Ng5 {[%emt 0:03:51]} Ne2+ {[%emt 0:00:17]} 26. Kf2 {[%emt 0:00:18]} Qd4+ {[%emt 0:00:04]} 27. Ke1 {[%emt 0:00:26]} Qg1+ {[%emt 0:00:31]} 28. Rf1 {[%emt 0:00:25]} Qe3 {[%emt 0:00:34]} 29. Qxh7# 1-0

[Event "XIX Najdorf Memorial 2019"]
[Site "Warsaw"]
[Date "2019.07.07"]
[Round "2.7"]
[White "Wisniewski, Michal"]
[Black "Galperin, Platon"]
[Result "0-1"]
[ECO "A09"]
[WhiteElo "2103"]
[BlackElo "2445"]
[Annotator "NA"]
[PlyCount "64"]
[EventDate "2019.07.06"]
[EventType "swiss"]
[EventCountry "POL"]
[SourceTitle "playchess.com"]
[Source "ChessBase"]
[SourceQuality "1"]
[TimeControl "40/5400+30:1800+30"]

1. Nf3 {[%emt 0:00:34]} d5 {[%emt 0:00:00]} 2. c4 {[%emt 0:00:10]} d4 {[%emt 0:00:00]} 3. e3 {[%emt 0:00:03]} Nc6 {[%emt 0:00:00]} 4. exd4 {[%emt 0:00:04]} Nxd4 {[%emt 0:00:03]} 5. Nxd4 {[%emt 0:00:03]} Qxd4 {[%emt 0:00:03]} 6. Nc3 {[%emt 0:00:05]} c6 {[%emt 0:00:03]} 7. d3 {[%emt 0:00:15]} Nh6 {[%emt 0:00:06]} 8. Be2 {[%emt 0:00:04]} g6 {[%emt 0:09:58]} 9. Be3 {[%emt 0:01:37]} Qd8 {[%emt 0:00:37]} 10. g4 {[%emt 0:00:05]} Bg7 {[%emt 0:00:20]} 11. h3 {[%emt 0:00:03]} f5 {[%emt 0:00:36]} 12. d4 {[%emt 0:04:21]} Nf7 {[%emt 0:01:55]} 13. f4 {[%emt 0:00:31]} Qc7 {[%emt 0:08:28]} 14. Qb3 {[%emt 0:07:41]} Be6 {[%emt 0:10:54]} 15. O-O-O {[%emt 0:10:28]} O-O {[%emt 0:10:31]} 16. d5 {[%emt 0:05:15]} Bd7 {[%emt 0:06:54]} 17. c5 {[%emt 0:00:13]} Rab8 {[%emt 0:03:59]} 18. h4 {[%emt 0:14:56]} b6 {[%emt 0:09:07]} 19. d6 {[%emt 0:00:42]} Qd8 {[%emt 0:00:25]} 20. Bc4 {[%emt 0:06:59]} exd6 21. Rxd6 {[%emt 0:07:37]} bxc5 {[%emt 0:19:18]} 22. Bxf7+ {[%emt 0:00:02]} Kh8 {[%emt 0:01:10]} 23. Qc4 {[%emt 0:11:24]} Qe7 {[%emt 0:00:01]} 24. Rxd7 {[%emt 0:00:07]} Qxe3+ {[%emt 0:01:12]} 25. Kc2 {[%emt 0:00:25]} Qf2+ {[%emt 0:00:04]} 26. Rd2 {[%emt 0:06:20]} Rxb2+ {[%emt 0:00:09]} 27. Kxb2 {[%emt 0:00:01]} Qxd2+ {[%emt 0:00:03]} 28. Kb3 {[%emt 0:00:03]} Rb8+ {[%emt 0:01:48]} 29. Ka4 {[%emt 0:00:01]} Qc2+ {[%emt 0:01:36]} 30. Ka5 {[%emt 0:00:05]} Bxc3+ {[%emt 0:00:13]} 31. Ka6 {[%emt 0:00:03]} Qb2 {[%emt 0:00:16]} 32. Qxc5 {[%emt 0:00:02]} Rd8 0-1

[Event "XIX Najdorf Memorial 2019"]
[Site "Warsaw"]
[Date "2019.07.07"]
[Round "2.8"]
[White "Socko, Monika"]
[Black "Jarocka, Liwia"]
[Result "1-0"]
[ECO "E10"]
[WhiteElo "2443"]
[BlackElo "2102"]
[Annotator "NA"]
[PlyCount "63"]
[EventDate "2019.07.06"]
[EventType "swiss"]
[EventCountry "POL"]
[SourceTitle "playchess.com"]
[Source "ChessBase"]
[SourceQuality "1"]
[TimeControl "40/5400+30:1800+30"]

1. d4 {[%emt 0:00:00]} Nf6 {[%emt 0:00:00]} 2. c4 {[%emt 0:00:00]} e6 {[%emt 0:00:00]} 3. Nf3 {[%emt 0:00:00]} d5 {[%emt 0:00:13]} 4. g3 {[%emt 0:00:14]} Bb4+ {[%emt 0:00:16]} 5. Nbd2 {[%emt 0:00:09]} O-O {[%emt 0:02:16]} 6. Bg2 {[%emt 0:00:21]} b6 {[%emt 0:02:21]} 7. O-O {[%emt 0:00:53]} Bb7 {[%emt 0:02:25]} 8. b3 {[%emt 0:00:08]} Nbd7 {[%emt 0:01:17]} 9. Bb2 {[%emt 0:00:18]} Rc8 {[%emt 0:02:24]} 10. Ne5 {[%emt 0:05:33]} Bd6 {[%emt 0:11:00]} 11. cxd5 {[%emt 0:06:06]} exd5 {[%emt 0:00:46]} 12. Ndc4 {[%emt 0:03:20]} Be7 {[%emt 0:05:26]} 13. Ne3 {[%emt 0:04:59]} c5 {[%emt 0:10:38]} 14. Nf5 {[%emt 0:03:03]} cxd4 {[%emt 0:03:15]} 15. Nxd7 {[%emt 0:07:17]} Nxd7 {[%emt 0:00:16]} 16. Nxe7+ {[%emt 0:03:41]} Qxe7 {[%emt 0:00:06]} 17. Qxd4 {[%emt 0:00:06]} Nf6 {[%emt 0:00:33]} 18. e3 {[%emt 0:06:38]} Rc2 {[%emt 0:03:47]} 19. Rab1 {[%emt 0:00:30]} Rd8 {[%emt 0:04:06]} 20. Rfd1 {[%emt 0:05:45]} Qe6 {[%emt 0:10:27]} 21. Qf4 {[%emt 0:11:42]} Ne8 {[%emt 0:09:26]} 22. Be4 {[%emt 0:06:33]} Rc7 {[%emt 0:04:31]} 23. Qh4 {[%emt 0:08:59]} h6 {[%emt 0:03:00]} 24. Qxd8 {[%emt 0:02:42]} Qxe4 {[%emt 0:00:08]} 25. Bd4 {[%emt 0:00:04]} Rc8 {[%emt 0:01:03]} 26. Qh4 {[%emt 0:01:03]} Qxh4 {[%emt 0:01:52]} 27. gxh4 {[%emt 0:00:03]} Nd6 {[%emt 0:00:07]} 28. Rbc1 {[%emt 0:00:21]} Nf5 {[%emt 0:00:33]} 29. Rxc8+ {[%emt 0:01:37]} Bxc8 {[%emt 0:00:01]} 30. Rc1 {[%emt 0:00:05]} Be6 {[%emt 0:00:07]} 31. Rc7 {[%emt 0:00:21]} Nxh4 {[%emt 0:00:10]} 32. Rxa7 {[%emt 0:00:25]} 1-0

[Event "XIX Najdorf Memorial 2019"]
[Site "Warsaw"]
[Date "2019.07.07"]
[Round "2.8"]
[White "Hassan, Abdullah"]
[Black "Shevchenko, Kirill"]
[Result "0-1"]
[ECO "A47"]
[WhiteElo "2311"]
[BlackElo "2536"]
[Annotator "ChessBase"]
[PlyCount "120"]
[EventDate "2019.07.06"]
[EventType "swiss"]
[EventCountry "POL"]
[SourceTitle "playchess.com"]
[Source "ChessBase"]
[SourceQuality "1"]
[TimeControl "40/5400+30:1800+30"]

1. d4 {[%emt 0:00:00]} Nf6 {[%emt 0:00:00]} 2. Nf3 {[%emt 0:00:00]} b6 {[%emt 0:00:00]} 3. e3 {[%emt 0:00:00]} Bb7 {[%emt 0:00:00]} 4. Bd3 {[%emt 0:00:00]} g6 {[%emt 0:00:00]} 5. O-O {[%emt 0:00:00]} Bg7 {[%emt 0:00:04]} 6. c4 {[%emt 0:00:05]} O-O {[%emt 0:00:40]} 7. Nc3 {[%emt 0:00:25]} d5 {[%emt 0:00:48]} 8. b3 {[%emt 0:01:00]} c5 {[%emt 0:03:32]} 9. Bb2 {[%emt 0:03:33]} cxd4 {[%emt 0:01:25]} 10. exd4 {[%emt 0:00:15]} Nc6 {[%emt 0:04:19]} 11. Re1 {[%emt 0:01:57]} Rc8 {[%emt 0:16:43]} 12. Ba3 {[%emt 0:11:57]} Re8 {[%emt 0:04:11]} 13. Rc1 {[%emt 0:01:23]} a6 {[%emt 0:13:49]} 14. Bf1 {[%emt 0:18:51]} dxc4 {[%emt 0:08:56]} 15. bxc4 {[%emt 0:00:48]} Na5 {[%emt 0:00:55]} 16. Ne5 {[%emt 0:04:35]} Nd7 {[%emt 0:05:24]} 17. Na4 {[%emt 0:01:09]} Bc6 {[%emt 0:13:49]} 18. Nxc6 {[%emt 0:02:00]} Nxc6 {[%emt 0:00:35]} 19. d5 {[%emt 0:00:02]} Nd4 {[%emt 0:02:16]} 20. Bb2 {[%emt 0:16:14]} e5 {[%emt 0:02:19]} 21. dxe6 {[%emt 0:06:41]} Rxe6 {[%emt 0:03:22]} 22. Rxe6 {[%emt 0:00:10]} Nxe6 {[%emt 0:00:04]} 23. Bxg7 {[%emt 0:00:06]} Kxg7 {[%emt 0:00:06]} 24. Rb1 {[%emt 0:07:56]} Rc6 {[%emt 0:03:07]} 25. Qf3 {[%emt 0:04:08]} Rd6 {[%emt 0:01:51]} 26. Nc3 {[%emt 0:04:13]} Nf6 {[%emt 0:02:56]} 27. h3 {[%emt 0:07:04]} Nc5 {[%emt 0:00:36]} 28. Rd1 {[%emt 0:02:24]} Rxd1 {[%emt 0:00:33]} 29. Qxd1 {[%emt 0:01:33]} Qxd1 {[%emt 0:00:22]} 30. Nxd1 {[%emt 0:00:02]} Kf8 {[%emt 0:01:37]} 31. f3 {[%emt 0:00:25]} Ke7 {[%emt 0:00:44]} 32. Kf2 {[%emt 0:00:01]} Kd6 {[%emt 0:01:36]} 33. Ke3 {[%emt 0:00:02]} Na4 {[%emt 0:01:53]} 34. Kd4 {[%emt 0:00:15]} Ne8 {[%emt 0:02:25]} 35. Nf2 {[%emt 0:02:12]} Nc5 {[%emt 0:00:29]} 36. g3 {[%emt 0:00:59]} Ng7 {[%emt 0:00:18]} 37. g4 {[%emt 0:01:31]} Nge6+ {[%emt 0:02:31]} 38. Ke3 {[%emt 0:00:04]} Ke5 {[%emt 0:00:11]} 39. h4 {[%emt 0:01:49]} f5 {[%emt 0:01:04]} 40. gxf5 gxf5 {[%emt 0:00:00]} 41. Nh3 {[%emt 0:04:45]} f4+ {[%emt 0:02:57]} 42. Kd2 {[%emt 0:00:08]} Nd4 {[%emt 0:00:34]} 43. Be2 {[%emt 0:00:31]} h5 {[%emt 0:04:49]} 44. Ng5 {[%emt 0:05:22]} Nf5 {[%emt 0:00:43]} 45. Nf7+ {[%emt 0:00:03]} Kf6 {[%emt 0:00:51]} 46. Nd8 {[%emt 0:01:02]} Nxh4 {[%emt 0:01:35]} 47. Nc6 {[%emt 0:00:51]} Nf5 {[%emt 0:02:15]} 48. Bf1 {[%emt 0:03:17]} Ne3 {[%emt 0:00:53]} 49. Bh3 {[%emt 0:01:01]} Nxc4+ {[%emt 0:00:28]} 50. Ke2 {[%emt 0:00:28]} b5 {[%emt 0:02:13]} 51. Nb4 {[%emt 0:00:24]} Ke5 {[%emt 0:00:56]} 52. Nc6+ {[%emt 0:00:44]} Kd6 {[%emt 0:00:19]} 53. Nd4 {[%emt 0:00:24]} b4 {[%emt 0:00:15]} 54. Nf5+ {[%emt 0:00:13]} Ke5 {[%emt 0:00:12]} 55. Ne7 {[%emt 0:00:09]} a5 {[%emt 0:00:33]} 56. Ng6+ {[%emt 0:00:20]} Kd4 {[%emt 0:00:35]} 57. Nxf4 {[%emt 0:00:01]} a4 {[%emt 0:00:19]} 58. Kd1 {[%emt 0:04:04]} Nd3 {[%emt 0:00:52]} 59. Nxh5 {[%emt 0:02:03]} b3 {[%emt 0:00:25]} 60. axb3 {[%emt 0:00:16]} a3 {[%emt 0:00:47]} 0-1

[Event "XIX Najdorf Memorial 2019"]
[Site "Warsaw"]
[Date "2019.07.07"]
[Round "2.9"]
[White "Heberla, Bartlomiej"]
[Black "Fus, Jakub"]
[Result "1-0"]
[ECO "A45"]
[WhiteElo "2534"]
[BlackElo "2341"]
[Annotator "ChessBase"]
[PlyCount "57"]
[EventDate "2019.07.06"]
[EventType "swiss"]
[EventCountry "POL"]
[SourceTitle "playchess.com"]
[Source "ChessBase"]
[SourceQuality "1"]
[TimeControl "40/5400+30:1800+30"]

1. d4 {[%emt 0:05:20]} Nf6 {[%emt 0:00:00]} 2. Bg5 {[%emt 0:00:03]} d5 {[%emt 0:00:11]} 3. e3 {[%emt 0:03:42]} e6 {[%emt 0:03:33]} 4. Nf3 {[%emt 0:07:31]} Nbd7 5. Nbd2 {[%emt 0:00:03]} Be7 {[%emt 0:03:49]} 6. Bd3 c5 {[%emt 0:00:55]} 7. c3 {[%emt 0:00:31]} b6 {[%emt 0:01:06]} 8. O-O {[%emt 0:00:14]} Bb7 {[%emt 0:01:04]} 9. Qb1 {[%emt 0:00:05]} O-O {[%emt 0:01:02]} 10. Ne5 {[%emt 0:06:20]} h6 {[%emt 0:00:58]} 11. Bxf6 {[%emt 0:02:31]} Nxf6 {[%emt 0:08:20]} 12. f4 {[%emt 0:00:30]} Nd7 {[%emt 0:10:22]} 13. Ndf3 {[%emt 0:00:44]} Nf6 {[%emt 0:00:49]} 14. Nd2 {[%emt 0:03:27]} Nd7 {[%emt 0:00:52]} 15. Qd1 {[%emt 0:09:05]} c4 {[%emt 0:09:27]} 16. Bc2 {[%emt 0:00:39]} b5 {[%emt 0:01:07]} 17. Qh5 {[%emt 0:14:27]} Nf6 {[%emt 0:10:51]} 18. Qh3 {[%emt 0:00:06]} b4 {[%emt 0:04:35]} 19. Rf3 {[%emt 0:01:08]} bxc3 {[%emt 0:09:32]} 20. bxc3 {[%emt 0:00:20]} Qa5 {[%emt 0:00:53]} 21. e4 {[%emt 0:02:27]} dxe4 {[%emt 0:04:14]} 22. Rg3 {[%emt 0:00:08]} Kh8 {[%emt 0:00:27]} 23. f5 {[%emt 0:10:01]} exf5 {[%emt 0:06:54]} 24. Qxf5 {[%emt 0:00:10]} Qd5 {[%emt 0:00:28]} 25. Ndxc4 {[%emt 0:15:35]} Rac8 {[%emt 0:05:57]} 26. Bb3 {[%emt 0:00:31]} Qd8 {[%emt 0:09:12]} 27. Nxf7+ {[%emt 0:00:05]} Rxf7 {[%emt 0:00:04]} 28. Ne5 {[%emt 0:00:05]} Bd5 {[%emt 0:00:49]} 29. Bxd5 {[%emt 0:00:16]} 1-0

[Event "XIX Najdorf Memorial 2019"]
[Site "Warsaw"]
[Date "2019.07.07"]
[Round "2.9"]
[White "Pettersson, Alexander"]
[Black "Romanishin, Oleg M"]
[Result "0-1"]
[ECO "E11"]
[WhiteElo "2083"]
[BlackElo "2443"]
[Annotator "NA"]
[PlyCount "86"]
[EventDate "2019.07.06"]
[EventType "swiss"]
[EventCountry "POL"]
[SourceTitle "playchess.com"]
[Source "ChessBase"]
[SourceQuality "1"]
[TimeControl "40/5400+30:1800+30"]

1. d4 {[%emt 0:00:00]} Nf6 {[%emt 0:00:00]} 2. c4 {[%emt 0:00:03]} e6 {[%emt 0:00:00]} 3. Nf3 {[%emt 0:00:11]} Bb4+ {[%emt 0:02:01]} 4. Nbd2 {[%emt 0:00:32]} b6 {[%emt 0:03:28]} 5. a3 {[%emt 0:00:49]} Bxd2+ {[%emt 0:00:09]} 6. Bxd2 {[%emt 0:00:58]} Bb7 {[%emt 0:00:18]} 7. Bg5 {[%emt 0:00:57]} d6 {[%emt 0:02:34]} 8. e3 {[%emt 0:00:25]} Nbd7 {[%emt 0:00:13]} 9. Be2 {[%emt 0:01:39]} h6 {[%emt 0:02:07]} 10. Bh4 {[%emt 0:06:17]} g5 {[%emt 0:04:44]} 11. Bg3 {[%emt 0:00:22]} Ne4 {[%emt 0:00:09]} 12. d5 {[%emt 0:28:38]} e5 {[%emt 0:14:35]} 13. Nd2 {[%emt 0:02:20]} Ndf6 {[%emt 0:08:51]} 14. Bd3 {[%emt 0:05:41]} Nxd2 {[%emt 0:02:14]} 15. Qxd2 {[%emt 0:02:18]} Qe7 {[%emt 0:01:30]} 16. Bf5 {[%emt 0:04:28]} Bc8 {[%emt 0:03:10]} 17. Qc2 {[%emt 0:06:29]} Bd7 {[%emt 0:02:30]} 18. b4 {[%emt 0:03:58]} e4 {[%emt 0:15:33]} 19. Bxd7+ {[%emt 0:01:13]} Nxd7 {[%emt 0:00:05]} 20. O-O {[%emt 0:05:52]} O-O {[%emt 0:06:31]} 21. f4 {[%emt 0:04:18]} exf3 {[%emt 0:02:02]} 22. Rxf3 {[%emt 0:00:05]} Ne5 {[%emt 0:08:14]} 23. Bxe5 {[%emt 0:01:59]} Qxe5 {[%emt 0:00:07]} 24. Raf1 {[%emt 0:00:22]} Kg7 {[%emt 0:02:39]} 25. Qf2 {[%emt 0:03:07]} f6 {[%emt 0:02:16]} 26. Rf5 {[%emt 0:04:07]} Qc3 {[%emt 0:02:23]} 27. h4 {[%emt 0:03:16]} Rae8 {[%emt 0:00:35]} 28. hxg5 {[%emt 0:01:37]} hxg5 {[%emt 0:00:32]} 29. e4 {[%emt 0:03:17]} Qxc4 {[%emt 0:00:58]} 30. Qb2 {[%emt 0:08:38]} Re5 {[%emt 0:01:01]} 31. Qf2 {[%emt 0:00:58]} Rxf5 {[%emt 0:01:00]} 32. Qxf5 {[%emt 0:00:13]} Qd4+ {[%emt 0:01:46]} 33. Rf2 {[%emt 0:00:17]} Rf7 {[%emt 0:00:48]} 34. g3 {[%emt 0:00:59]} Qa1+ {[%emt 0:06:52]} 35. Kg2 {[%emt 0:00:34]} Qxa3 {[%emt 0:00:06]} 36. Rf1 {[%emt 0:00:29]} Qb2+ {[%emt 0:00:27]} 37. Kf3 {[%emt 0:00:30]} Qc3+ {[%emt 0:02:33]} 38. Kg4 {[%emt 0:00:17]} Qe5 {[%emt 0:00:10]} 39. Qf3 {[%emt 0:00:26]} Re7 {[%emt 0:01:08]} 40. Re1 {[%emt 0:00:00]} a5 {[%emt 0:00:00]} 41. bxa5 {[%emt 0:08:59]} bxa5 {[%emt 0:00:30]} 42. Qf1 {[%emt 0:01:34]} a4 {[%emt 0:02:10]} 43. Kf3 {[%emt 0:00:38]} f5 {[%emt 0:02:01]} 0-1

[Event "XIX Najdorf Memorial 2019"]
[Site "Warsaw"]
[Date "2019.07.07"]
[Round "2.10"]
[White "Baum, Jonasz"]
[Black "Noe, Christopher"]
[Result "1/2-1/2"]
[ECO "D20"]
[WhiteElo "2308"]
[BlackElo "2534"]
[Annotator "ChessBase"]
[PlyCount "79"]
[EventDate "2019.07.06"]
[EventType "swiss"]
[EventCountry "POL"]
[SourceTitle "playchess.com"]
[Source "ChessBase"]
[SourceQuality "1"]
[TimeControl "40/5400+30:1800+30"]

1. d4 {[%emt 0:00:00]} d5 {[%emt 0:09:28]} 2. c4 {[%emt 0:00:00]} dxc4 {[%emt 0:00:14]} 3. e4 {[%emt 0:00:00]} e5 {[%emt 0:00:16]} 4. Nf3 {[%emt 0:00:02]} exd4 {[%emt 0:01:06]} 5. Bxc4 {[%emt 0:00:05]} Bb4+ {[%emt 0:00:07]} 6. Bd2 {[%emt 0:05:24]} Bxd2+ {[%emt 0:01:19]} 7. Nbxd2 {[%emt 0:00:08]} Nc6 {[%emt 0:08:11]} 8. O-O {[%emt 0:00:06]} Nf6 {[%emt 0:15:31]} 9. e5 {[%emt 0:07:17]} Nd5 {[%emt 0:00:06]} 10. Nb3 {[%emt 0:01:04]} O-O {[%emt 0:10:26]} 11. Nbxd4 {[%emt 0:01:25]} Nxd4 {[%emt 0:01:04]} 12. Nxd4 {[%emt 0:12:19]} Nb6 {[%emt 0:02:17]} 13. Bb3 {[%emt 0:01:06]} c5 {[%emt 0:10:49]} 14. Nb5 {[%emt 0:00:44]} c4 {[%emt 0:00:56]} 15. Bc2 {[%emt 0:00:54]} Qh4 {[%emt 0:01:36]} 16. Nd6 {[%emt 0:12:44]} Be6 {[%emt 0:03:15]} 17. Be4 {[%emt 0:05:14]} Rad8 {[%emt 0:02:57]} 18. Qe2 {[%emt 0:00:35]} Rd7 {[%emt 0:11:29]} 19. Bxb7 {[%emt 0:01:54]} Rc7 {[%emt 0:01:39]} 20. Bf3 {[%emt 0:02:57]} Nd7 {[%emt 0:04:39]} 21. g3 {[%emt 0:09:57]} Qg5 {[%emt 0:03:32]} 22. Rfe1 {[%emt 0:00:42]} Rd8 {[%emt 0:02:11]} 23. Rad1 {[%emt 0:00:46]} Qxe5 {[%emt 0:01:29]} 24. Qxe5 {[%emt 0:05:52]} Nxe5 {[%emt 0:00:03]} 25. Rxe5 {[%emt 0:00:08]} Rcd7 {[%emt 0:00:04]} 26. Ra5 {[%emt 0:07:17]} Rxd6 {[%emt 0:00:06]} 27. Rxd6 {[%emt 0:00:05]} Rxd6 {[%emt 0:00:04]} 28. Rxa7 {[%emt 0:00:14]} Kf8 {[%emt 0:00:23]} 29. Kg2 {[%emt 0:06:51]} Rb6 {[%emt 0:00:19]} 30. Rb7 {[%emt 0:00:12]} Ra6 {[%emt 0:00:01]} 31. a3 {[%emt 0:00:22]} c3 {[%emt 0:00:07]} 32. bxc3 {[%emt 0:00:23]} Rxa3 {[%emt 0:00:03]} 33. Rc7 {[%emt 0:00:59]} Ke8 {[%emt 0:00:03]} 34. h3 {[%emt 0:03:00]} Kd8 {[%emt 0:00:32]} 35. Rc5 {[%emt 0:00:53]} Ke7 {[%emt 0:03:38]} 36. h4 {[%emt 0:04:57]} Kd6 {[%emt 0:01:34]} 37. Rc6+ {[%emt 0:00:06]} Kd7 {[%emt 0:00:21]} 38. Rc5 {[%emt 0:01:30]} Kd6 {[%emt 0:00:05]} 39. Rc6+ {[%emt 0:01:04]} Kd7 {[%emt 0:00:01]} 40. Rc5 {[%emt 0:00:00]} 1/2-1/2

[Event "XIX Najdorf Memorial 2019"]
[Site "Warsaw"]
[Date "2019.07.07"]
[Round "2.10"]
[White "Sliwerski, Radoslaw"]
[Black "Nguyen, Piotr"]
[Result "0-1"]
[ECO "E63"]
[WhiteElo "2010"]
[BlackElo "2420"]
[Annotator "NA"]
[PlyCount "76"]
[EventDate "2019.07.06"]
[EventType "swiss"]
[EventCountry "POL"]
[SourceTitle "playchess.com"]
[Source "ChessBase"]
[SourceQuality "1"]
[TimeControl "40/5400+30:1800+30"]

1. d4 {[%emt 0:00:00]} Nf6 {[%emt 0:02:51]} 2. c4 {[%emt 0:02:13]} g6 {[%emt 0:00:16]} 3. g3 {[%emt 0:00:04]} Bg7 {[%emt 0:00:05]} 4. Bg2 {[%emt 0:00:04]} O-O {[%emt 0:00:12]} 5. Nf3 {[%emt 0:00:19]} d6 {[%emt 0:00:31]} 6. O-O {[%emt 0:00:08]} Nc6 {[%emt 0:00:12]} 7. Nc3 {[%emt 0:00:06]} a6 {[%emt 0:00:12]} 8. h3 {[%emt 0:00:17]} Rb8 {[%emt 0:01:46]} 9. e4 {[%emt 0:00:03]} b5 {[%emt 0:00:19]} 10. e5 {[%emt 0:00:28]} dxe5 {[%emt 0:03:41]} 11. dxe5 {[%emt 0:00:02]} Nd7 {[%emt 0:00:12]} 12. e6 {[%emt 0:00:24]} fxe6 {[%emt 0:01:02]} 13. cxb5 {[%emt 0:00:03]} axb5 {[%emt 0:00:26]} 14. Ng5 {[%emt 0:04:11]} Nd4 {[%emt 0:07:09]} 15. Be3 {[%emt 0:05:25]} Nc5 {[%emt 0:08:35]} 16. Rc1 {[%emt 0:16:58]} e5 {[%emt 0:06:38]} 17. b4 {[%emt 0:24:04]} Na6 {[%emt 0:10:19]} 18. a3 {[%emt 0:11:49]} c5 {[%emt 0:10:29]} 19. bxc5 {[%emt 0:04:46]} Nxc5 {[%emt 0:00:10]} 20. Nd5 {[%emt 0:05:09]} Qd6 {[%emt 0:07:19]} 21. Re1 {[%emt 0:01:41]} e6 {[%emt 0:02:46]} 22. Nb4 {[%emt 0:06:03]} h6 {[%emt 0:12:10]} 23. Ne4 {[%emt 0:00:34]} Nxe4 {[%emt 0:00:05]} 24. Bxe4 {[%emt 0:00:12]} Bb7 {[%emt 0:00:15]} 25. Nc6 {[%emt 0:04:57]} Rbc8 {[%emt 0:06:30]} 26. Nxd4 {[%emt 0:02:40]} Rxc1 {[%emt 0:04:17]} 27. Qxc1 {[%emt 0:00:08]} Bxe4 {[%emt 0:01:43]} 28. Nxb5 {[%emt 0:00:40]} Qd3 {[%emt 0:00:59]} 29. a4 {[%emt 0:01:08]} Bb7 {[%emt 0:02:59]} 30. Kh2 {[%emt 0:03:24]} Qe4 {[%emt 0:06:23]} 31. Rg1 {[%emt 0:00:09]} Qxa4 {[%emt 0:00:05]} 32. Nd6 {[%emt 0:01:21]} Bd5 {[%emt 0:00:57]} 33. Qc7 {[%emt 0:00:48]} Qa2 {[%emt 0:02:10]} 34. Qa7 {[%emt 0:00:26]} Qe2 {[%emt 0:00:34]} 35. Qc5 {[%emt 0:00:51]} Rf3 {[%emt 0:01:30]} 36. Qc8+ {[%emt 0:02:45]} Rf8 {[%emt 0:00:11]} 37. Qc5 {[%emt 0:00:05]} Rf3 {[%emt 0:00:03]} 38. Qc8+ {[%emt 0:00:02]} Bf8 0-1

[Event "XIX Najdorf Memorial 2019"]
[Site "Warsaw"]
[Date "2019.07.07"]
[Round "2.11"]
[White "Jakubowski, Krzysztof"]
[Black "Paszewski, Mateusz"]
[Result "1-0"]
[ECO "A06"]
[WhiteElo "2528"]
[BlackElo "2324"]
[Annotator "ChessBase"]
[PlyCount "71"]
[EventDate "2019.07.06"]
[EventType "swiss"]
[EventCountry "POL"]
[SourceTitle "playchess.com"]
[Source "ChessBase"]
[SourceQuality "1"]
[TimeControl "40/5400+30:1800+30"]

1. Nf3 {[%emt 0:00:00]} d5 {[%emt 0:06:05]} 2. b3 {[%emt 0:00:00]} Bg4 {[%emt 0:00:07]} 3. e3 {[%emt 0:00:00]} Nf6 {[%emt 0:01:44]} 4. Bb2 {[%emt 0:00:11]} Nbd7 {[%emt 0:00:37]} 5. h3 {[%emt 0:01:37]} Bh5 {[%emt 0:01:09]} 6. d3 {[%emt 0:05:58]} e6 {[%emt 0:00:53]} 7. Be2 {[%emt 0:03:08]} h6 {[%emt 0:07:48]} 8. Nbd2 {[%emt 0:04:32]} Bg6 {[%emt 0:13:06]} 9. O-O {[%emt 0:08:44]} Bd6 {[%emt 0:02:03]} 10. e4 {[%emt 0:03:49]} dxe4 {[%emt 0:07:11]} 11. dxe4 {[%emt 0:00:11]} Nxe4 {[%emt 0:00:25]} 12. Bxg7 {[%emt 0:01:02]} Rg8 {[%emt 0:00:46]} 13. Bb2 {[%emt 0:02:16]} Nxd2 {[%emt 0:04:10]} 14. Qxd2 {[%emt 0:00:34]} Qe7 {[%emt 0:00:56]} 15. Qxh6 {[%emt 0:03:03]} Bxc2 {[%emt 0:05:35]} 16. Qe3 {[%emt 0:06:32]} Nb6 {[%emt 0:10:37]} 17. Nd4 {[%emt 0:04:04]} Bh7 {[%emt 0:08:58]} 18. Bb5+ {[%emt 0:09:17]} Nd7 {[%emt 0:06:28]} 19. Bxd7+ {[%emt 0:08:43]} Qxd7 {[%emt 0:00:48]} 20. Nf3 {[%emt 0:00:12]} O-O-O {[%emt 0:04:51]} 21. Bf6 {[%emt 0:00:23]} Rde8 {[%emt 0:00:36]} 22. Ne5 {[%emt 0:04:38]} Bxe5 {[%emt 0:07:10]} 23. Bxe5 {[%emt 0:00:14]} Kb8 {[%emt 0:00:02]} 24. Rac1 {[%emt 0:01:47]} Rc8 {[%emt 0:00:08]} 25. Rfd1 {[%emt 0:08:24]} Qe7 {[%emt 0:00:57]} 26. Qd4 {[%emt 0:02:01]} Qg5 {[%emt 0:06:42]} 27. g3 {[%emt 0:04:11]} b6 {[%emt 0:00:36]} 28. Rc6 {[%emt 0:05:24]} Qf5 {[%emt 0:01:26]} 29. Rxb6+ {[%emt 0:02:10]} axb6 {[%emt 0:00:11]} 30. Qxb6+ {[%emt 0:00:05]} Ka8 {[%emt 0:00:03]} 31. Qa6+ {[%emt 0:02:03]} Kb8 {[%emt 0:00:01]} 32. Qb6+ {[%emt 0:00:06]} Ka8 {[%emt 0:00:01]} 33. Qc6+ {[%emt 0:00:04]} Kb8 {[%emt 0:00:35]} 34. Rd4 {[%emt 0:00:38]} Qb1+ {[%emt 0:00:17]} 35. Kh2 {[%emt 0:00:06]} Qe1 {[%emt 0:00:16]} 36. Qb6+ {[%emt 0:00:07]} 1-0